fUST/lending_fUST_20240826
["ID","MTS","AMOUNT","RATE_DAILY","PERIOD"]
[335947527,1724637041294,-500.0,0.00012407,2]
[335947528,1724637041304,-500.0,0.00012407,2]
[335947529,1724637041313,-500.0,0.00012407,2]
[335947530,1724637041323,-851.23,0.00012407,2]
[335947531,1724637041332,-500.0,0.00012407,2]
[335947532,1724637041347,-500.0,0.00012407,2]
[335947533,1724637041357,-500.0,0.00012407,2]
[335947534,1724637041366,-10287.86,0.00012407,2]
[335947535,1724637041376,-500.0,0.00012407,2]
[335947536,1724637041385,-500.0,0.00012407,2]
[335947537,1724637041394,-500.0,0.00012407,2]
[335947538,1724637041404,-500.0,0.00012407,2]
[335947539,1724637041414,-559.92,0.00012407,2]
[335947540,1724637041424,-500.0,0.00012407,2]
[335947541,1724637041433,-500.0,0.00012407,2]
[335947542,1724637041443,-500.0,0.00012407,2]
[335947543,1724637041453,-500.0,0.00012407,2]
[335947544,1724637041464,-904.34,0.00012407,2]
[335947545,1724637041474,-500.0,0.00012407,2]
[335947546,1724637041483,-500.0,0.00012407,2]
[335947547,1724637041492,-500.0,0.00012407,2]
[335947548,1724637041502,-500.0,0.00012407,2]
[335947549,1724637041511,-500.0,0.00012407,2]
[335947550,1724637041523,-500.0,0.00012407,2]
[335947551,1724637041537,-500.0,0.00012407,2]
[335947552,1724637041547,-500.0,0.00012407,2]
[335947553,1724637041557,-500.0,0.00012407,2]
[335947554,1724637041567,-500.0,0.00012407,2]
[335947555,1724637041577,-872.3,0.00012407,2]
[335947556,1724637041587,-549.94,0.00012407,2]
[335947557,1724637041597,-500.0,0.00012408,2]
[335947558,1724637041609,-746.1,0.00012408,2]
[335947559,1724637041619,-559.91,0.00012408,2]
[335947560,1724637041632,-500.0,0.00012408,2]
[335947561,1724637041644,-500.0,0.00012408,2]
[335947562,1724637041655,-500.0,0.00012408,2]
[335947563,1724637041664,-500.0,0.00012408,2]
[335947564,1724637041674,-500.0,0.00012408,2]
[335947565,1724637041683,-503.22569739,0.00012408,2]
[335947566,1724637041692,-1042.91,0.00012408,2]
[335947567,1724637041702,-500.0,0.00012408,2]
[335947568,1724637041712,-1121.25,0.00012408,2]
[335947569,1724637041721,-500.0,0.00012408,2]
[335947570,1724637041730,-500.0,0.00012408,2]
[335947571,1724637041740,-795.73,0.00012408,2]
[335947572,1724637041750,-848.67,0.00012408,2]
[335947573,1724637041759,-519.33,0.00012408,2]
[335947574,1724637041768,-604.38,0.00012408,2]
[335947575,1724637041778,-618.2,0.00012408,2]
[335947576,1724637041787,-742.02,0.00012408,2]
[335947577,1724637041796,-500.0,0.00012408,2]
[335947578,1724637041806,-761.27,0.00012408,2]
[335947579,1724637041815,-500.0,0.00012408,2]
[335947580,1724637041825,-869.76,0.00012408,2]
[335947581,1724637041834,-500.0,0.00012408,2]
[335947582,1724637041843,-1069.75,0.00012408,2]
[335947583,1724637041854,-585.54,0.00012408,2]
[335947584,1724637041864,-500.0,0.00012408,2]
[335947585,1724637041874,-500.0,0.00012408,2]
[335947586,1724637041884,-1015.0,0.00012408,2]
[335947587,1724637041893,-500.0,0.00012408,2]
[335947588,1724637041903,-639.31,0.00012408,2]
[335947589,1724637041912,-500.0,0.00012408,2]
[335947590,1724637041923,-787.47,0.00012408,2]
[335947591,1724637041935,-521.85,0.00012408,2]
[335947592,1724637041945,-500.0,0.00012408,2]
[335947593,1724637041954,-794.36,0.00012408,2]
[335947594,1724637041964,-606.55,0.00012408,2]
[335947595,1724637041974,-500.0,0.00012408,2]
[335947596,1724637041984,-1724.45,0.00012408,2]
[335947597,1724637041994,-10250.98,0.00012408,2]
[335947598,1724637042004,-500.0,0.00012408,2]
[335947599,1724637042014,-500.0,0.00012408,2]
[335947600,1724637042024,-535.01,0.00012408,2]
[335947601,1724637042034,-500.0,0.00012408,2]
[335947602,1724637042043,-900.87,0.00012408,2]
[335947603,1724637042053,-546.01,0.00012408,2]
[335947604,1724637042063,-559.01,0.00012408,2]
[335947605,1724637042072,-1240.54,0.00012408,2]
[335947606,1724637042085,-785.4,0.00012408,2]
[335947607,1724637042094,-3301.58,0.00012408,2]
[335947608,1724637042104,-551.02,0.00012408,2]
[335947609,1724637042114,-741.44,0.00012408,2]
[335947610,1724637042124,-500.0,0.00012408,2]
[335947611,1724637042135,-500.0,0.00012408,2]
[335947612,1724637042343,-687.3,0.00012408,2]
[335947613,1724637042354,-508.52,0.00012408,2]
[335947614,1724637042366,-500.0,0.00012408,2]
[335947615,1724637042376,-500.0,0.00012408,2]
[335947616,1724637042385,-509.97,0.00012408,2]
[335947617,1724637042394,-486.52502966,0.00012408,2]
[335947618,1724637042403,-500.0,0.00012408,2]
[335947619,1724637042413,-821.2,0.00012408,2]
[335947620,1724637042422,-11648.98,0.00012408,2]
[335947621,1724637042432,-1414.54,0.00012408,2]
[335947622,1724637042442,-683.5,0.00012408,2]
[335947623,1724637042452,-500.0,0.00012408,2]
[335947624,1724637042462,-500.0,0.00012408,2]
[335947625,1724637042472,-2805.98,0.00012408,2]
[335947626,1724637042481,-658.07,0.00012408,2]
[335947627,1724637042490,-3089.99,0.00012408,2]
[335947628,1724637042500,-500.0,0.00012408,2]
[335947629,1724637042510,-782.01,0.00012408,2]
[335947630,1724637042519,-568.65,0.00012408,2]
[335947631,1724637042529,-500.0,0.00012408,2]
[335947632,1724637042539,-1063.52,0.00012408,2]
[335947633,1724637042549,-500.0,0.00012408,2]
[335947634,1724637042560,-500.57984176,0.00012408,2]
[335947635,1724637042569,-639.47,0.00012408,2]
[335947636,1724637042579,-500.0,0.00012408,2]
[335947637,1724637042592,-4647.98,0.00012408,2]
[335947638,1724637042601,-1096.03,0.00012408,2]
[335947639,1724637042611,-500.64434896,0.00012408,2]
[335947640,1724637042625,-967.48,0.00012408,2]
[335947641,1724637042634,-500.0,0.00012408,2]
[335947642,1724637042643,-747.12,0.00012408,2]
[335947643,1724637042653,-557.71,0.00012408,2]
[335947644,1724637042662,-500.0,0.00012408,2]
[335947645,1724637042672,-1048.34,0.00012408,2]
[335947646,1724637042681,-1780.97,0.00012408,2]
[335947647,1724637042691,-500.0,0.00012408,2]
[335947648,1724637042700,-1840.66,0.00012408,2]
[335947649,1724637042710,-4696.89,0.00012408,2]
[335947650,1724637042719,-500.0,0.00012408,2]
[335947651,1724637042729,-500.0,0.00012408,2]
[335947652,1724637042739,-500.0,0.00012408,2]
[335947653,1724637042749,-535.43,0.00012408,2]
[335947654,1724637042758,-500.0,0.00012408,2]
[335947655,1724637042767,-667.27,0.00012408,2]
[335947656,1724637042777,-294.04419169,0.00012408,2]
[335947657,1724637042786,-596.58,0.00012408,2]
[335947658,1724637042795,-789.67,0.00012408,2]
[335947659,1724637042805,-673.2,0.00012408,2]
[335947660,1724637042814,-613.84,0.00012408,2]
[335947661,1724637042823,-500.0,0.00012408,2]
[335947663,1724637042832,-766.81,0.00012408,2]
[335947664,1724637042842,-806.46,0.00012408,2]
[335947665,1724637042851,-937.88,0.00012408,2]
[335947666,1724637042861,-500.0,0.00012408,2]
[335947667,1724637042871,-500.0,0.00012408,2]
[335947668,1724637042882,-500.0,0.00012408,2]
[335947669,1724637042892,-906.08,0.00012408,2]
[335947670,1724637042901,-500.0,0.00012408,2]
[335947671,1724637042910,-500.0,0.00012408,2]
[335947672,1724637042919,-500.0,0.00012408,2]
[335947673,1724637042929,-33790.34,0.00012408,2]
[335947674,1724637042938,-526.83,0.00012408,2]
[335947675,1724637042949,-1372.67,0.00012408,2]
[335947677,1724637042958,-22754.26875657,0.00012408,2]
[335947744,1724637043686,-500.0,0.00012407,2]
[335947746,1724637043696,-71913.34181883,0.00012408,2]
[335947748,1724637043706,-17731.97814792,0.00012409,2]
[335948128,1724637087708,1298.5461611,0.00011407,2]
[335948129,1724637170295,23387.5312721,0.00011402,2]
[335948131,1724637199934,3094.87417801,0.00011999,2]
[335948132,1724637283700,2144.32657805,0.00011999,2]
[335948133,1724637285026,1365.99049471,0.00011999,2]
[335948134,1724637318388,2195.90191726,0.00011999,2]
[335948138,1724637407969,934.47116226,0.00011999,2]
[335948140,1724637482529,155.36243417,0.00011999,2]
[335948141,1724637490291,154.98088165,0.00011999,2]
[335948142,1724637496859,301.76694481,0.00011999,2]
[335948143,1724637516852,818.13880886,0.00011999,2]
[335948144,1724637546790,154.84735218,0.00011999,2]
[335948145,1724637548914,535.23487752,0.00011999,2]
[335948146,1724637575813,197.48440728,0.00011999,2]
[335948147,1724637579110,695.28989851,0.00011999,2]
[335948148,1724637624337,199.25515695,0.00011999,2]
[335948149,1724637626466,305.18057612,0.00011999,2]
[335948151,1724637634594,776.85089286,0.00011999,2]
[335948152,1724637645103,521.74792488,0.00011999,2]
[335948153,1724637656111,320.5021642,0.00011999,2]
[335948154,1724637658559,154.99655891,0.00011999,2]
[335948158,1724637735758,24900.0,0.00011342,2]
[335948160,1724637751389,602.32126151,0.00011999,2]
[335948161,1724637752766,376.54229165,0.00011999,3]
[335948162,1724637780176,404.72731861,0.00011999,2]
[335948164,1724637802480,223.68706831,0.00011999,2]
[335948165,1724637809186,256.40589276,0.00011999,2]
[335948166,1724637828806,157.21069484,0.00011999,2]
[335948167,1724637835678,196.95212144,0.00011999,2]
[335948168,1724637894319,2901.69554221,0.00011999,2]
[335948169,1724637903236,154.74467129,0.00011999,2]
[335948171,1724637927567,273.72198638,0.00011999,2]
[335948174,1724637968395,164.50141868,0.00011999,2]
[335948175,1724638004471,202.1272998,0.00011999,2]
[335948178,1724638011847,261.22118796,0.00011999,2]
[335948179,1724638015299,813.17963049,0.00011999,2]
[335948181,1724638037662,265.88753403,0.00011999,2]
[335948185,1724638072678,167.28164351,0.00011999,2]
[335948187,1724638102408,154.74467129,0.00011999,2]
[335948188,1724638106198,308.43002949,0.00011999,2]
[335948191,1724638132405,154.74467129,0.00011999,2]
[335948193,1724638143345,78.20511949,0.00011999,2]
[335948194,1724638143382,2636.35814011,0.00011999,2]
[335948195,1724638155158,210.43423433,0.00011999,2]
[335948198,1724638200492,175.30091042,0.00011999,2]
[335948201,1724638218136,154.74467129,0.00011999,2]
[335948862,1724638238473,-7983.51079151,0.00012163,2]
[335948864,1724638238484,-3823.7043497,0.00012177,2]
[335948866,1724638238495,-1000.0,0.00012282,2]
[335948869,1724638238506,-1061.93096532,0.00012297,2]
[335948871,1724638238518,-1000.0,0.00012317,2]
[335948873,1724638238530,-300.0,0.00012355,2]
[335948875,1724638238541,-300.0,0.00012355,2]
[335948878,1724638238551,-834.72,0.00012376,2]
[335948880,1724638238561,-500.0,0.00012376,2]
[335948882,1724638238570,-527.03,0.00012377,2]
[335948884,1724638238580,-528.06,0.00012377,2]
[335948886,1724638238589,-11163.6,0.00012377,2]
[335948888,1724638238598,-2961.24,0.00012377,2]
[335948890,1724638238608,-1019.2,0.00012377,2]
[335948892,1724638238618,-534.47,0.00012377,2]
[335948894,1724638238629,-1706.76,0.00012377,2]
[335948896,1724638238639,-571.72,0.00012377,2]
[335948899,1724638238651,-32382.41,0.00012377,2]
[335948901,1724638238661,-19315.8302111,0.00012377,2]
[335948903,1724638238678,-148810.4419489,0.00012377,2]
[335948905,1724638238687,-829.55,0.00012386,2]
[335948907,1724638238696,-500.0,0.00012386,2]
[335948909,1724638238705,-9859.2,0.00012386,2]
[335948911,1724638238714,-536.59,0.00012386,2]
[335948913,1724638238723,-500.0,0.00012386,2]
[335948915,1724638238733,-866.66,0.00012386,2]
[335948917,1724638238741,-500.0,0.00012386,2]
[335948919,1724638238751,-168126.27216,0.00012387,2]
[335948921,1724638238760,-326.75646293,0.00012387,2]
[335948923,1724638238769,-508.77,0.00012387,2]
[335948925,1724638238778,-1038.23,0.00012387,2]
[335948927,1724638238787,-883.62,0.00012387,2]
[335948929,1724638238796,-742.78,0.00012387,2]
[335948931,1724638238805,-500.0,0.00012387,2]
[335948933,1724638238815,-500.0,0.00012387,2]
[335948935,1724638238824,-502.09,0.00012387,2]
[335948937,1724638238833,-500.0,0.00012387,2]
[335948939,1724638238843,-748.89,0.00012387,2]
[335948941,1724638238852,-549.53,0.00012387,2]
[335948943,1724638238862,-500.0,0.00012387,2]
[335948945,1724638238871,-500.0,0.00012387,2]
[335948947,1724638238883,-502.80007792,0.00012387,2]
[335948949,1724638238892,-500.0,0.00012387,2]
[335948951,1724638238901,-500.0,0.00012387,2]
[335948953,1724638238912,-500.0,0.00012387,2]
[335948955,1724638238922,-563.12,0.00012387,2]
[335948957,1724638238935,-489.15234295,0.00012387,2]
[335948959,1724638238944,-500.0,0.00012387,2]
[335948961,1724638238956,-618.56,0.00012387,2]
[335948963,1724638238965,-500.0,0.00012387,2]
[335948965,1724638238974,-500.0,0.00012387,2]
[335948967,1724638238985,-500.0,0.00012387,2]
[335948969,1724638238994,-500.0,0.00012387,2]
[335948971,1724638239003,-384.54078142,0.00012387,2]
[335948973,1724638239013,-500.0,0.00012387,2]
[335948975,1724638239022,-703.82,0.00012387,2]
[335948977,1724638239031,-500.0,0.00012387,2]
[335948979,1724638239040,-500.0,0.00012387,2]
[335948981,1724638239050,-500.0,0.00012387,2]
[335948983,1724638239060,-500.0,0.00012387,2]
[335948984,1724638239070,-500.0,0.00012387,2]
[335948986,1724638239079,-1125.46,0.00012387,2]
[335948988,1724638239089,-500.0,0.00012387,2]
[335948990,1724638239098,-500.0,0.00012387,2]
[335948993,1724638239111,-504.48,0.00012387,2]
[335948995,1724638239122,-500.0,0.00012387,2]
[335948997,1724638239132,-500.0,0.00012387,2]
[335948999,1724638239141,-500.0,0.00012387,2]
[335949001,1724638239150,-500.0,0.00012387,2]
[335949003,1724638239160,-511.62,0.00012387,2]
[335949005,1724638239169,-500.0,0.00012387,2]
[335949007,1724638239178,-798.72,0.00012387,2]
[335949009,1724638239187,-500.0,0.00012387,2]
[335949011,1724638239196,-851.88,0.00012387,2]
[335949013,1724638239205,-500.0,0.00012387,2]
[335949015,1724638239215,-538.32,0.00012387,2]
[335949017,1724638239224,-521.25,0.00012387,2]
[335949019,1724638239233,-606.66,0.00012387,2]
[335949021,1724638239242,-532.0,0.00012387,2]
[335949023,1724638239252,-500.0,0.00012387,2]
[335949025,1724638239261,-210.75469539,0.00012387,2]
[335949027,1724638239270,-708.24,0.00012387,2]
[335949029,1724638239280,-721.78,0.00012387,2]
[335949031,1724638239290,-731.94,0.00012387,2]
[335949033,1724638239299,-500.0,0.00012387,2]
[335949036,1724638239309,-503.45,0.00012387,2]
[335949037,1724638239318,-614.69,0.00012387,2]
[335949039,1724638239327,-577.98,0.00012387,2]
[335949041,1724638239336,-500.0,0.00012387,2]
[335949044,1724638239346,-764.13,0.00012387,2]
[335949046,1724638239355,-500.0,0.00012387,2]
[335949048,1724638239365,-500.0,0.00012387,2]
[335949050,1724638239374,-873.01,0.00012387,2]
[335949052,1724638239384,-500.0,0.00012387,2]
[335949054,1724638239393,-500.0,0.00012387,2]
[335949056,1724638239403,-500.0,0.00012387,2]
[335949058,1724638239413,-500.0,0.00012387,2]
[335949060,1724638239422,-500.0,0.00012387,2]
[335949062,1724638239432,-1073.78,0.00012387,2]
[335949064,1724638239443,-852.74,0.00012387,2]
[335949066,1724638239453,-587.74,0.00012387,2]
[335949068,1724638239463,-500.0,0.00012387,2]
[335949070,1724638239472,-500.0,0.00012387,2]
[335949072,1724638239482,-1018.8,0.00012387,2]
[335949074,1724638239491,-500.0,0.00012387,2]
[335949076,1724638239501,-501.00911231,0.00012387,2]
[335949078,1724638239510,-500.0,0.00012387,2]
[335949080,1724638239520,-500.0,0.00012387,2]
[335949083,1724638239531,-500.0,0.00012387,2]
[335949085,1724638239542,-500.0,0.00012387,2]
[335949087,1724638239552,-500.0,0.00012387,2]
[335949089,1724638239564,-500.0,0.00012387,2]
[335949091,1724638239573,-500.0,0.00012387,2]
[335949093,1724638239582,-500.0,0.00012387,2]
[335949096,1724638239592,-500.0,0.00012387,2]
[335949098,1724638239601,-500.0,0.00012387,2]
[335949100,1724638239610,-500.0,0.00012387,2]
[335949101,1724638239620,-500.0,0.00012387,2]
[335949103,1724638239629,-500.0,0.00012387,2]
[335949106,1724638239638,-500.0,0.00012387,2]
[335949108,1724638239647,-567.26722609,0.00012387,2]
[335949109,1724638239657,-790.41,0.00012387,2]
[335949110,1724638239668,-569.01,0.00012387,2]
[335949111,1724638239677,-500.0,0.00012387,2]
[335949112,1724638239687,-500.0,0.00012387,2]
[335949113,1724638239696,-500.0,0.00012387,2]
[335949114,1724638239705,-500.0,0.00012387,2]
[335949115,1724638239715,-500.0,0.00012387,2]
[335949116,1724638239724,-500.0,0.00012387,2]
[335949117,1724638239734,-500.0,0.00012387,2]
[335949118,1724638239743,-500.0,0.00012387,2]
[335949119,1724638239752,-500.0,0.00012387,2]
[335949120,1724638239762,-500.0,0.00012387,2]
[335949122,1724638239772,-500.0,0.00012387,2]
[335949124,1724638239782,-904.24,0.00012387,2]
[335949127,1724638239792,-500.0,0.00012387,2]
[335949128,1724638239801,-500.0,0.00012387,2]
[335949130,1724638239810,-835.95,0.00012387,2]
[335949133,1724638239820,-500.0,0.00012387,2]
[335949135,1724638239830,-535.71,0.00012387,2]
[335949137,1724638239839,-512.72,0.00012387,2]
[335949139,1724638239848,-500.0,0.00012387,2]
[335949141,1724638239857,-523.26,0.00012387,2]
[335949143,1724638239867,-528.82,0.00012387,2]
[335949145,1724638239876,-385.97359748,0.00012387,2]
[335949147,1724638239890,-500.0,0.00012387,2]
[335949149,1724638239900,-761.26,0.00012387,2]
[335949151,1724638239910,-500.0,0.00012387,2]
[335949153,1724638239920,-500.0,0.00012387,2]
[335949155,1724638239931,-744.18,0.00012387,2]
[335949157,1724638239940,-1728.84,0.00012387,2]
[335949159,1724638239950,-500.0,0.00012387,2]
[335949161,1724638239961,-1026.6,0.00012387,2]
[335949163,1724638239971,-786.74,0.00012387,2]
[335949165,1724638239980,-509.44,0.00012387,2]
[335949167,1724638239989,-500.0,0.00012387,2]
[335949169,1724638240000,-500.0,0.00012387,2]
[335949171,1724638240010,-500.0,0.00012387,2]
[335949173,1724638240020,-500.0,0.00012387,2]
[335949175,1724638240030,-500.0,0.00012387,2]
[335949177,1724638240038,-3164.01,0.00012387,2]
[335949179,1724638240047,-688.53,0.00012387,2]
[335949181,1724638240058,-822.69,0.00012387,2]
[335949183,1724638240067,-500.0,0.00012387,2]
[335949185,1724638240076,-1061.06,0.00012387,2]
[335949187,1724638240085,-1417.09,0.00012387,2]
[335949189,1724638240095,-500.0,0.00012387,2]
[335949191,1724638240104,-500.0,0.00012387,2]
[335949193,1724638240113,-659.26,0.00012387,2]
[335949195,1724638240122,-500.0,0.00012387,2]
[335949197,1724638240132,-1236.45,0.00012387,2]
[335949199,1724638240141,-500.0,0.00012387,2]
[335949201,1724638240151,-500.0,0.00012387,2]
[335949203,1724638240160,-500.0,0.00012387,2]
[335949205,1724638240171,-500.0,0.00012387,2]
[335949207,1724638240180,-655.02,0.00012387,2]
[335949210,1724638240190,-544.96,0.00012387,2]
[335949212,1724638240199,-500.0,0.00012387,2]
[335949241,1724638240424,-500.0,0.00012387,2]
[335949243,1724638240435,-500.0,0.00012387,2]
[335949246,1724638240446,-749.43,0.00012387,2]
[335949248,1724638240455,-500.0,0.00012387,2]
[335949250,1724638240464,-500.0,0.00012387,2]
[335949252,1724638240474,-1185.52,0.00012387,2]
[335949254,1724638240483,-640.58,0.00012387,2]
[335949256,1724638240493,-969.22,0.00012387,2]
[335949258,1724638240502,-500.0,0.00012387,2]
[335949260,1724638240511,-488.63828028,0.00012387,2]
[335949262,1724638240520,-500.0,0.00012387,2]
[335949264,1724638240530,-500.0,0.00012387,2]
[335949266,1724638240540,-3466.12454005,0.00012387,2]
[335949317,1724638241003,-988.18545995,0.00012387,2]
[335949319,1724638241013,-472.81454927,0.00012387,2]
[335949322,1724638241035,-700.45545073,0.00012387,2]
[335949324,1724638241046,-2810.88,0.00012387,2]
[335949327,1724638241057,-635.6,0.00012387,2]
[335949329,1724638241067,-500.0,0.00012387,2]
[335949330,1724638241076,-500.0,0.00012387,2]
[335949332,1724638241085,-595.98,0.00012387,2]
[335949334,1724638241094,-255.38706636,0.00012387,2]
[335949336,1724638241104,-500.0,0.00012387,2]
[335949338,1724638241114,-500.0,0.00012387,2]
[335949341,1724638241125,-717.05,0.00012387,2]
[335949343,1724638241138,-500.0,0.00012387,2]
[335949345,1724638241150,-500.0,0.00012387,2]
[335949347,1724638241161,-500.0,0.00012387,2]
[335949349,1724638241171,-500.0,0.00012387,2]
[335949352,1724638241182,-640.7,0.00012387,2]
[335949354,1724638241192,-500.0,0.00012387,2]
[335949356,1724638241203,-500.0,0.00012387,2]
[335949358,1724638241215,-1098.0,0.00012387,2]
[335949360,1724638241224,-756.77,0.00012387,2]
[335949362,1724638241234,-500.0,0.00012387,2]
[335949364,1724638241243,-500.0,0.00012387,2]
[335949366,1724638241253,-893.44,0.00012387,2]
[335949368,1724638241262,-500.0,0.00012387,2]
[335949370,1724638241272,-639.47,0.00012387,2]
[335949372,1724638241281,-2521.89,0.00012387,2]
[335949374,1724638241291,-500.0,0.00012387,2]
[335949376,1724638241300,-536.4,0.00012387,2]
[335949378,1724638241310,-748.47,0.00012387,2]
[335949380,1724638241319,-500.0,0.00012387,2]
[335949382,1724638241329,-500.0,0.00012387,2]
[335949385,1724638241339,-547.15,0.00012387,2]
[335949387,1724638241351,-1323.13,0.00012387,2]
[335949389,1724638241362,-645.72,0.00012387,2]
[335949391,1724638241371,-1331.59,0.00012387,2]
[335949394,1724638241386,-674.41,0.00012387,2]
[335949396,1724638241396,-500.0,0.00012387,2]
[335949398,1724638241408,-504.88609184,0.00012387,2]
[335949400,1724638241418,-500.0,0.00012387,2]
[335949402,1724638241428,-939.58,0.00012387,2]
[335949404,1724638241440,-1050.24,0.00012387,2]
[335949407,1724638241452,-500.0,0.00012387,2]
[335949409,1724638241463,-651.81,0.00012387,2]
[335949411,1724638241472,-588.27,0.00012387,2]
[335949413,1724638241483,-500.0,0.00012387,2]
[335949415,1724638241492,-500.0,0.00012387,2]
[335949417,1724638241502,-500.0,0.00012387,2]
[335949419,1724638241512,-4501.19,0.00012387,2]
[335949421,1724638241522,-500.0,0.00012387,2]
[335949424,1724638241534,-918.57,0.00012387,2]
[335949426,1724638241546,-807.88,0.00012387,2]
[335949428,1724638241556,-742.96,0.00012387,2]
[335949430,1724638241568,-968.8,0.00012387,2]
[335949432,1724638241577,-500.0,0.00012387,2]
[335949434,1724638241587,-500.0,0.00012387,2]
[335949436,1724638241597,-500.0,0.00012387,2]
[335949438,1724638241608,-547.6,0.00012387,2]
[335949440,1724638241618,-500.0,0.00012387,2]
[335949442,1724638241629,-500.0,0.00012387,2]
[335949444,1724638241638,-500.0,0.00012387,2]
[335949447,1724638241650,-3801.80370414,0.00012394,2]
[335949449,1724638241660,-1146.25,0.00012397,2]
[335949451,1724638241672,-554.43,0.00012397,2]
[335949453,1724638241684,-850.14,0.00012397,2]
[335949455,1724638241694,-584.98,0.00012397,2]
[335949457,1724638241704,-500.0,0.00012397,2]
[335949459,1724638241717,-500.0,0.00012397,2]
[335949461,1724638241727,-500.0,0.00012397,2]
[335949463,1724638241738,-810.17,0.00012397,2]
[335949465,1724638241749,-633.71,0.00012397,2]
[335949467,1724638241761,-500.0,0.00012397,2]
[335949469,1724638241771,-730.43,0.00012397,2]
[335949471,1724638241780,-500.0,0.00012397,2]
[335949473,1724638241790,-764.18,0.00012397,2]
[335949475,1724638241800,-578.11,0.00012397,2]
[335949477,1724638241809,-584.09,0.00012397,2]
[335949479,1724638241820,-500.0,0.00012397,2]
[335949481,1724638241830,-500.0,0.00012397,2]
[335949483,1724638241840,-1250.75,0.00012397,2]
[335949485,1724638241852,-500.0,0.00012397,2]
[335949487,1724638241862,-500.0,0.00012397,2]
[335949488,1724638241871,-1115.71,0.00012397,2]
[335949489,1724638241882,-500.0,0.00012397,2]
[335949490,1724638241892,-500.0,0.00012397,2]
[335949491,1724638241902,-1353.18,0.00012397,2]
[335949492,1724638241912,-500.0,0.00012397,2]
[335949493,1724638241922,-1170.73,0.00012397,2]
[335949494,1724638241933,-590.47,0.00012397,2]
[335949495,1724638241943,-950.47,0.00012397,2]
[335949496,1724638241952,-574.88,0.00012397,2]
[335949498,1724638241964,-1151.62,0.00012397,2]
[335949500,1724638241973,-907.33,0.00012397,2]
[335949501,1724638241983,-500.84087238,0.00012397,2]
[335949503,1724638241992,-658.97,0.00012397,2]
[335949505,1724638242002,-952.78,0.00012397,2]
[335949507,1724638242011,-500.0,0.00012397,2]
[335949509,1724638242021,-540.76,0.00012397,2]
[335949511,1724638242030,-819.72,0.00012397,2]
[335949513,1724638242040,-500.0,0.00012397,2]
[335949515,1724638242049,-500.0,0.00012397,2]
[335949517,1724638242058,-500.0,0.00012397,2]
[335949519,1724638242067,-500.0,0.00012397,2]
[335949521,1724638242076,-500.0,0.00012397,2]
[335949523,1724638242086,-500.0,0.00012397,2]
[335949525,1724638242095,-500.0,0.00012397,2]
[335949527,1724638242105,-500.0,0.00012397,2]
[335949529,1724638242114,-500.0,0.00012397,2]
[335949531,1724638242124,-757.61,0.00012397,2]
[335949533,1724638242133,-500.0,0.00012397,2]
[335949535,1724638242143,-1144.9,0.00012397,2]